[Event "European Blitz-ch 2018"]
[Site "Skopje"]
[Date "2018.12.06"]
[Round "10"]
[White "Saraci, Nderim"]
[Black "Papasimakopoulos, Alexandros"]
[Result "1-0"]
[ECO "C06"]
[WhiteElo "2382"]
[BlackElo "2191"]
[PlyCount "147"]
[EventDate "2018.12.06"]
[EventType "swiss"]
[EventCountry "MKD"]
[TimeControl "180+2"]

1. e4 {[%emt 0:00:00]} e6 {[%emt 0:00:00]} 2. d4 {[%emt 0:00:01]} d5 {[%emt 0:00:00]} 3. Nd2 {[%emt 0:00:02]} Nf6 {[%emt 0:00:00]} 4. e5 {[%emt 0:00:01]} Nfd7 {[%emt 0:00:00]} 5. Bd3 {[%emt 0:00:01]} c5 {[%emt 0:00:01]} 6. c3 {[%emt 0:00:01]} Nc6 {[%emt 0:00:00]} 7. Ne2 {[%emt 0:00:01]} cxd4 {[%emt 0:00:01]} 8. cxd4 {[%emt 0:00:01]} f6 {[%emt 0:00:01]} 9. Nf4 {[%emt 0:00:40]} Nxd4 {[%emt 0:00:01]} 10. Qh5+ {[%emt 0:02:32]} Ke7 {[%emt 0:03:16]} 11. Ng6+ {[%emt 0:00:00]} hxg6 {[%emt 0:00:00]} 12. exf6+ {[%emt 0:00:00]} Nxf6 {[%emt 0:00:00]} 13. Qxh8 Kf7 14. O-O {[%emt 0:00:00]} e5 {[%emt 0:00:00]} 15. Nb3 {[%emt 0:00:00]} Nxb3 {[%emt 0:00:00]} 16. axb3 {[%emt 0:00:00]} Bf5 {[%emt 0:00:00]} 17. Bxf5 {[%emt 0:00:00]} gxf5 {[%emt 0:00:00]} 18. Qh3 {[%emt 0:00:00]} g6 {[%emt 0:00:00]} 19. Bg5 {[%emt 0:00:00]} Be7 {[%emt 0:00:00]} 20. Rfd1 {[%emt 0:00:00]} d4 {[%emt 0:00:00]} 21. Rac1 {[%emt 0:00:00]} Qd6 {[%emt 0:00:00]} 22. Qd3 {[%emt 0:00:00]} Rd8 {[%emt 0:00:00]} 23. h3 {[%emt 0:00:00]} Kg7 {[%emt 0:00:00]} 24. Qb5 {[%emt 0:00:00]} Rd7 {[%emt 0:00:00]} 25. Rc8 {[%emt 0:00:00]} a6 {[%emt 0:00:00]} 26. Qc4 {[%emt 0:00:00]} Qd5 {[%emt 0:00:00]} 27. Bxf6+ {[%emt 0:00:00]} Kxf6 {[%emt 0:00:00]} 28. Qc1 {[%emt 0:00:00]} Qxb3 {[%emt 0:00:00]} 29. Rf1 {[%emt 0:00:04]} d3 {[%emt 0:00:00]} 30. Qd2 {[%emt 0:00:28]} Kg7 {[%emt 0:00:00]} 31. Rc3 {[%emt 0:00:02]} Qd5 {[%emt 0:00:00]} 32. Rc8 {[%emt 0:00:01]} a5 {[%emt 0:00:07]} 33. Rd1 {[%emt 0:00:03]} e4 {[%emt 0:00:09]} 34. Qc3+ {[%emt 0:00:02]} Bf6 {[%emt 0:00:04]} 35. Qa3 {[%emt 0:00:02]} Be7 {[%emt 0:00:06]} 36. Qc3+ {[%emt 0:00:01]} Bf6 {[%emt 0:00:13]} 37. Qa3 {[%emt 0:00:01]} Qd6 {[%emt 0:00:01]} 38. Qxa5 {[%emt 0:00:07]} d2 {[%emt 0:00:04]} 39. Rc2 {[%emt 0:00:02]} Bg5 {[%emt 0:00:01]} 40. Qc3+ {[%emt 0:00:02]} Kh7 {[%emt 0:00:02]} 41. Qc5 {[%emt 0:00:03]} Qxc5 {[%emt 0:00:04]} 42. Rxc5 {[%emt 0:00:01]} Kg7 {[%emt 0:00:04]} 43. Kf1 {[%emt 0:00:01]} Bh6 {[%emt 0:00:01]} 44. Ke2 {[%emt 0:00:01]} Kf7 {[%emt 0:00:04]} 45. Rc3 {[%emt 0:00:02]} Bg5 {[%emt 0:00:02]} 46. g3 {[%emt 0:00:01]} Ke6 {[%emt 0:00:02]} 47. Rb3 {[%emt 0:00:03]} Kf7 {[%emt 0:00:02]} 48. h4 {[%emt 0:00:01]} Bh6 {[%emt 0:00:01]} 49. Rc3 {[%emt 0:00:03]} Ke6 {[%emt 0:00:03]} 50. Rc4 {[%emt 0:00:01]} b5 {[%emt 0:00:02]} 51. Rc6+ {[%emt 0:00:01]} Kf7 {[%emt 0:00:03]} 52. Rc5 {[%emt 0:00:02]} Rb7 {[%emt 0:00:04]} 53. Ra1 {[%emt 0:00:04]} b4 {[%emt 0:00:03]} 54. Rd1 {[%emt 0:00:03]} Ke6 {[%emt 0:00:02]} 55. Rc6+ {[%emt 0:00:01]} Kf7 {[%emt 0:00:01]} 56. g4 {[%emt 0:00:02]} fxg4 {[%emt 0:00:02]} 57. Rc4 {[%emt 0:00:01]} e3 {[%emt 0:00:03]} 58. fxe3 {[%emt 0:00:02]} Re7 {[%emt 0:00:01]} 59. Kxd2 {[%emt 0:00:02]} Rxe3 {[%emt 0:00:01]} 60. Rf1+ {[%emt 0:00:03]} Ke6 {[%emt 0:00:03]} 61. Kd1 {[%emt 0:00:03]} Rh3 {[%emt 0:00:02]} 62. Rxg4 {[%emt 0:00:01]} Kd5 {[%emt 0:00:03]} 63. Kc2 {[%emt 0:00:04]} b3+ {[%emt 0:00:01]} 64. Kd1 {[%emt 0:00:01]} Rh2 {[%emt 0:00:02]} 65. Rxg6 {[%emt 0:00:02]} Be3 {[%emt 0:00:01]} 66. Rg4 {[%emt 0:00:03]} Rxb2 {[%emt 0:00:01]} 67. Rf5+ {[%emt 0:00:03]} Ke6 {[%emt 0:00:01]} 68. Rb5 {[%emt 0:00:01]} Rd2+ {[%emt 0:00:05]} 69. Ke1 {[%emt 0:00:00]} Rd3 {[%emt 0:00:03]} 70. Ke2 Rc3 71. Re4+ {[%emt 0:00:02]} Kd6 {[%emt 0:00:02]} 72. Rxe3 {[%emt 0:00:01]} Rc2+ {[%emt 0:00:00]} 73. Kf3 {[%emt 0:00:01]} b2 {[%emt 0:00:01]} 74. Reb3 {[%emt 0:00:01] Kd5 [%clk 0:00:00] Ke4+ [%clk 0:00:00]} 1-0